fUST/lending_fUST_20250323
["ID","MTS","AMOUNT","RATE_DAILY","PERIOD"]
[356580058,1742723373885,-2771.89,0.0001904,2]
[356580059,1742723373910,-2536.99,0.0001904,2]
[356580060,1742723373931,-709.73,0.0001904,2]
[356580061,1742723373952,-790.13,0.0001904,2]
[356580062,1742723373972,-500.0,0.0001904,2]
[356580063,1742723373995,-619.05,0.0001904,2]
[356580064,1742723374017,-5599.37,0.0001904,2]
[356580065,1742723374037,-23825.15,0.0001904,2]
[356580066,1742723374058,-500.0,0.0001904,2]
[356580067,1742723374081,-500.0,0.0001904,2]
[356580068,1742723374101,-500.0,0.0001904,2]
[356580069,1742723374123,-272.54857112,0.0001904,2]
[356580070,1742723374143,-500.0,0.00019041,2]
[356580071,1742723374163,-500.0,0.00019041,2]
[356580072,1742723374198,-565.99,0.00019041,2]
[356580073,1742723374219,-500.0,0.00019041,2]
[356580074,1742723374240,-270.75490451,0.00019041,2]
[356580075,1742723374261,-500.0,0.00019041,2]
[356580076,1742723374281,-500.0,0.00019041,2]
[356580077,1742723374302,-500.0,0.00019041,2]
[356580078,1742723374322,-782.33,0.00019041,2]
[356580079,1742723374342,-558.5,0.00019041,2]
[356580080,1742723374361,-500.0,0.00019041,2]
[356580081,1742723374381,-500.0,0.00019041,2]
[356580082,1742723374403,-643.37,0.00019041,2]
[356580083,1742723374422,-500.0,0.00019041,2]
[356580084,1742723374442,-1285.06,0.00019041,2]
[356580085,1742723374461,-537.29,0.00019041,2]
[356580086,1742723374481,-628.76,0.00019041,2]
[356580087,1742723374502,-500.0,0.00019041,2]
[356580088,1742723374521,-571.83,0.00019041,2]
[356580089,1742723374542,-774.15,0.00019041,2]
[356580090,1742723374563,-540.92,0.00019041,2]
[356580091,1742723374587,-576.75,0.00019041,2]
[356580092,1742723374610,-500.0,0.00019041,2]
[356580093,1742723374632,-500.0,0.00019041,2]
[356580094,1742723374653,-855.08,0.00019041,2]
[356580095,1742723374674,-1443.37,0.00019041,2]
[356580096,1742723374695,-604.15,0.00019041,2]
[356580097,1742723374716,-500.0,0.00019041,2]
[356580098,1742723374737,-500.0,0.00019041,2]
[356580099,1742723374757,-513.77,0.00019041,2]
[356580100,1742723374777,-735.17,0.00019041,2]
[356580101,1742723374798,-500.0,0.00019041,2]
[356580102,1742723374818,-500.0,0.00019041,2]
[356580103,1742723374839,-898.53,0.00019041,2]
[356580104,1742723374859,-777.8,0.00019041,2]
[356580105,1742723374881,-545.4,0.00019041,2]
[356580106,1742723374901,-500.0,0.00019041,2]
[356580107,1742723374922,-500.0,0.00019041,2]
[356580108,1742723374944,-911.73,0.00019041,2]
[356580109,1742723374968,-500.0,0.00019041,2]
[356580110,1742723374990,-587.86,0.00019041,2]
[356580111,1742723375013,-580.36,0.00019041,2]
[356580112,1742723375038,-833.75,0.00019041,2]
[356580113,1742723375062,-1999.7,0.00019041,2]
[356580114,1742723375083,-542.86,0.00019041,2]
[356580115,1742723375104,-106.74399909,0.00019041,2]
[356580116,1742723406238,-171.15166986,0.00017701,2]
[356580117,1742723416137,-150.0,0.00017524,2]
[356580118,1742723431295,-154.43233188,0.00017218,2]
[356580133,1742723432447,-229.79766592,0.00017218,2]
[356580134,1742723432458,-90.04794767,0.00017524,2]
[356580135,1742723432468,-9.98278814,0.00017701,2]
[356580136,1742723432478,-151.0,0.00018208,2]
[356580137,1742723432487,-73.0022287,0.00018208,2]
[356580138,1742723432499,-526.9977713,0.00018208,2]
[356580139,1742723432509,-670.8,0.00018217,2]
[356580140,1742723432519,-636.05,0.00018217,2]
[356580141,1742723432528,-300.0,0.00018217,2]
[356580142,1742723432538,-500.0,0.00018217,2]
[356580143,1742723432588,-500.0,0.00018217,2]
[356580144,1742723432598,-5641.31,0.00018217,2]
[356580145,1742723432607,-500.0,0.00018217,2]
[356580146,1742723432617,-1156.64,0.00018217,2]
[356580147,1742723432626,-500.0,0.00018218,2]
[356580148,1742723432635,-1666.42,0.00018218,2]
[356580149,1742723432656,-500.0,0.00018218,2]
[356580150,1742723432666,-4122.82,0.00018218,2]
[356580151,1742723432675,-500.0,0.00018218,2]
[356580152,1742723432685,-500.0,0.00018218,2]
[356580153,1742723432695,-756.05,0.00018218,2]
[356580154,1742723432704,-3964.06,0.00018218,2]
[356580155,1742723432714,-500.0,0.00018218,2]
[356580156,1742723432725,-3143.08,0.00018218,2]
[356580157,1742723432735,-568.85,0.00018218,2]
[356580158,1742723432745,-500.0,0.00018218,2]
[356580159,1742723432755,-500.0,0.00018218,2]
[356580160,1742723432765,-1486.13,0.00018218,2]
[356580161,1742723432774,-500.0,0.00018218,2]
[356580162,1742723432784,-696.77,0.00018218,2]
[356580163,1742723432795,-500.0,0.00018218,2]
[356580164,1742723432806,-514.06,0.00018218,2]
[356580165,1742723432815,-3770.57908785,0.00018218,2]
[356580166,1742723432825,-500.0,0.00018219,2]
[356580167,1742723432834,-235008.0,0.00018219,2]
[356580168,1742723432844,-9278.46,0.00018219,2]
[356580169,1742723432856,-500.0,0.00018219,2]
[356580170,1742723432865,-17558.77,0.00018219,2]
[356580171,1742723432874,-2156.4,0.00018219,2]
[356580172,1742723432883,-1965.61,0.00018219,2]
[356580173,1742723432893,-909.71,0.00018219,2]
[356580174,1742723432904,-1683.92,0.00018219,2]
[356580175,1742723432913,-645.66,0.00018219,2]
[356580176,1742723432922,-531.42,0.00018219,2]
[356580177,1742723432931,-500.0,0.00018219,2]
[356580178,1742723432945,-500.0,0.00018219,2]
[356580179,1742723432955,-500.0,0.00018219,2]
[356580180,1742723432965,-622.2,0.00018263,2]
[356580181,1742723432974,-645.2214,0.00018318,2]
[356580182,1742723432984,-669.0945918,0.00018373,2]
[356580183,1742723432995,-874.63096939,0.00018428,2]
[356580184,1742723433004,-670.8,0.00018491,2]
[356580185,1742723433014,-636.05,0.00018491,2]
[356580186,1742723433024,-500.0,0.00018491,2]
[356580187,1742723433033,-500.0,0.00018491,2]
[356580188,1742723433043,-5641.31,0.00018491,2]
[356580189,1742723433053,-500.0,0.00018491,2]
[356580190,1742723433064,-1156.64,0.00018491,2]
[356580191,1742723433073,-500.0,0.00018492,2]
[356580192,1742723433083,-1666.42,0.00018492,2]
[356580193,1742723433093,-500.0,0.00018492,2]
[356580194,1742723433102,-4122.82,0.00018492,2]
[356580195,1742723433112,-500.0,0.00018492,2]
[356580196,1742723433122,-500.0,0.00018492,2]
[356580197,1742723433131,-756.05,0.00018492,2]
[356580198,1742723433140,-3964.06,0.00018492,2]
[356580199,1742723433150,-3143.08,0.00018492,2]
[356580200,1742723433159,-568.85,0.00018492,2]
[356580201,1742723433169,-500.0,0.00018492,2]
[356580202,1742723433179,-500.0,0.00018492,2]
[356580203,1742723433188,-1486.13,0.00018492,2]
[356580204,1742723433197,-500.0,0.00018492,2]
[356580205,1742723433207,-696.77,0.00018492,2]
[356580206,1742723433217,-500.0,0.00018492,2]
[356580207,1742723433228,-514.06,0.00018492,2]
[356580208,1742723433237,-500.0,0.00018493,2]
[356580209,1742723433247,-105372.06347387,0.00018493,2]
[356580210,1742723433265,-2196.5795364,0.00018493,2]
[356580211,1742723433281,-426.18,0.00018218,2]
[356580212,1742723433397,-2168.09,0.00018218,2]
[356580213,1742723433407,-356.88662908,0.00018493,2]
[356580216,1742723438232,-500.0,0.00018217,2]
[356580217,1742723438242,-304.43233188,0.00018307,2]
[356580218,1742723438254,-500.0,0.00018491,2]
[356580219,1742723438263,-86.13218229,0.00018492,2]
[356580220,1742723438275,-2508.13781771,0.00018492,2]
[356580221,1742723438285,-19133.48346044,0.00018493,2]
[356580225,1742723440926,-68.91446901,0.00018217,2]
[356580234,1742723443371,-431.08553099,0.00018217,2]
[356580235,1742723443381,-500.0,0.00018217,2]
[356580236,1742723443391,-500.0,0.00018218,2]
[356580237,1742723443400,-500.0,0.00018491,2]
[356580238,1742723443417,-500.0,0.00018491,2]
[356580239,1742723443428,-500.0,0.00018492,2]
[356580240,1742723443437,-107948.98690021,0.00018493,2]
[356580241,1742723443447,-9278.46,0.00018493,2]
[356580242,1742723443457,-17558.77,0.00018493,2]
[356580243,1742723443466,-500.0,0.00018493,2]
[356580244,1742723443476,-2156.4,0.00018493,2]
[356580245,1742723443486,-1965.61,0.00018493,2]
[356580246,1742723443496,-909.71,0.00018493,2]
[356580247,1742723443505,-1683.92,0.00018493,2]
[356580248,1742723443515,-645.66,0.00018493,2]
[356580249,1742723443525,-531.42,0.00018493,2]
[356580250,1742723443535,-500.0,0.00018493,2]
[356580251,1742723443546,-500.0,0.00018493,2]
[356580252,1742723443555,-500.0,0.00018493,2]
[356580253,1742723443565,-500.0,0.00018722,2]
[356580254,1742723443575,-563.78039617,0.00018722,2]
[356580255,1742723443584,-500.0,0.00018722,2]
[356580256,1742723443594,-500.0,0.00018722,2]
[356580257,1742723443604,-418.27432203,0.00018722,2]
[356580258,1742723443613,-500.0,0.00018722,2]
[356580259,1742723443622,-500.0,0.00018722,2]
[356580260,1742723443632,-500.0,0.00018722,2]
[356580261,1742723443642,-500.0,0.00018722,2]
[356580262,1742723443651,-500.0,0.00018722,2]
[356580263,1742723443661,-500.0,0.00018722,2]
[356580264,1742723443671,-500.0,0.00018722,2]
[356580265,1742723443681,-500.0,0.00018722,2]
[356580266,1742723443691,-474.71062425,0.00018722,2]
[356580267,1742723443701,-500.0,0.00018722,2]
[356580268,1742723443711,-500.0,0.00018722,2]
[356580269,1742723443722,-156.587,0.00018756,2]
[356580270,1742723443732,-670.8,0.00018765,2]
[356580271,1742723443743,-636.05,0.00018765,2]
[356580272,1742723443753,-500.0,0.00018765,2]
[356580273,1742723443764,-500.0,0.00018765,2]
[356580274,1742723443774,-5641.31,0.00018765,2]
[356580275,1742723443784,-500.0,0.00018765,2]
[356580276,1742723443794,-1156.64,0.00018765,2]
[356580277,1742723443804,-500.0,0.00018765,2]
[356580278,1742723443814,-500.0,0.00018765,2]
[356580279,1742723443824,-500.0,0.00018765,2]
[356580280,1742723443834,-500.0,0.00018766,2]
[356580281,1742723443844,-1666.42,0.00018766,2]
[356580282,1742723443854,-500.0,0.00018766,2]
[356580283,1742723443864,-1013.40673835,0.00018766,2]
[356580284,1742723444008,-371.7,0.00018766,2]
[356580285,1742723444024,-1033.04189927,0.00018766,2]
[356580300,1742723546774,458.71,0.00010959,2]
[356580302,1742723557294,458.7,0.00010959,2]
[356580304,1742723628557,-186.8748709,0.00017217,2]
[356580307,1742723660273,403.28,0.00010959,2]
[356580309,1742723732562,-181.5599978,0.00017045,2]
[356580310,1742723767155,-150.00809855,0.00017045,2]
[356580314,1742723798061,-216.57853844,0.00017045,2]
[356580316,1742723824679,-202.37592937,0.00017045,2]
[356580318,1742723837950,-152.67,0.00016733,2]
[356580319,1742723883580,-218.49776043,0.00016733,2]
[356580320,1742723895150,219.3207458,0.00010959,2]
[356580321,1742723913890,-216.27639552,0.00016733,2]
[356580323,1742723918158,-178.9976,0.00016733,2]
[356580326,1742723920126,-300.0,0.00016566,2]
[356580327,1742723930949,-177.38,0.00016566,2]
[356580328,1742723943683,-150.0,0.00016566,2]
[356580332,1742723966677,-150.0,0.00016268,2]
[356580333,1742723968380,-150.0,0.00016268,2]
[356580334,1742724003420,-157.1510105,0.00016267,2]
[356580337,1742724009054,-142.8489895,0.00016267,2]
[356580338,1742724009078,-157.1510105,0.00016268,2]
[356580340,1742724014770,-300.0,0.00015388,2]
[356580342,1742724039030,-178.9976,0.00015388,2]
[356580346,1742724066732,-150.0,0.00015388,2]
[356580349,1742724108050,-152.67,0.00015234,2]
[356580350,1742724111165,-152.67,0.00015234,2]
[356580363,1742724294136,-296.91717984,0.00015082,2]
[356580364,1742724302596,-318.7355185,0.00015082,2]
[356580365,1742724303148,300.0,0.00012001,2]
[356580369,1742724318772,-255.99154232,0.00015082,2]
[356580371,1742724347112,-280.02876761,0.00015082,2]
[356580372,1742724347132,-1768.9723299,0.00015094,2]
[356580373,1742724347153,-186.8927792,0.00015234,2]
[356580374,1742724347172,-245.30490266,0.00015265,2]
[356580375,1742724352829,-159.91830583,0.00015112,2]
[356580376,1742724434092,-1726.37576034,0.00015265,2]
[356580377,1742724434113,-50.53949596,0.00015388,2]
[356580378,1742724434133,-475.7268548,0.00016157,2]
[356580379,1742724434157,-1775.7035032,0.00016165,2]
[356580380,1742724434181,-4440.61523766,0.00016167,2]
[356580381,1742724434202,-600.0,0.00016256,2]
[356580382,1742724434222,-728.80450912,0.00016257,2]
[356580383,1742724434243,-300.0,0.00016257,2]
[356580384,1742724434262,-1238.05,0.00016258,2]
[356580385,1742724434283,-500.0,0.00016264,2]
[356580386,1742724434305,-500.0,0.00016264,2]
[356580387,1742724434327,-1794.88541936,0.00016264,2]
[356580388,1742724434348,-500.0,0.00016264,2]
[356580389,1742724434373,-1794.88541936,0.00016264,2]
[356580390,1742724434396,-500.0,0.00016264,2]
[356580391,1742724434418,-500.0,0.00016264,2]
[356580392,1742724434697,-1794.88541936,0.00016264,2]
[356580393,1742724434721,-500.0,0.00016264,2]
[356580394,1742724434744,-331.9164478,0.00016264,2]
[356580395,1742724441095,-1462.96897156,0.00016264,2]
[356580396,1742724441118,-374.00557097,0.00016264,2]
[356580397,1742724441142,-1794.88541936,0.00016264,2]
[356580398,1742724441164,-500.0,0.00016264,2]
[356580399,1742724441187,-1794.88541936,0.00016264,2]
[356580400,1742724441209,-500.0,0.00016264,2]
[356580401,1742724441231,-1794.88541936,0.00016264,2]
[356580402,1742724441252,-500.0,0.00016264,2]
[356580403,1742724441276,-1794.88541936,0.00016264,2]
[356580404,1742724441302,-1794.88541936,0.00016264,2]
[356580405,1742724441324,-500.0,0.00016264,2]
[356580406,1742724441348,-1794.88541936,0.00016264,2]
[356580407,1742724441370,-500.0,0.00016264,2]
[356580408,1742724441395,-1794.88541936,0.00016264,2]
[356580409,1742724441419,-500.0,0.00016264,2]
[356580410,1742724441441,-1794.88541936,0.00016264,2]
[356580411,1742724441462,-500.0,0.00016264,2]
[356580412,1742724441486,-1794.88541936,0.00016264,2]
[356580413,1742724441508,-500.0,0.00016264,2]
[356580414,1742724441530,-1794.88541936,0.00016264,2]
[356580415,1742724441552,-349.99108827,0.00016264,2]
[356580416,1742724441574,-1794.88541936,0.00016264,2]
[356580417,1742724441596,-500.0,0.00016264,2]
[356580418,1742724441620,-1794.88541936,0.00016264,2]
[356580419,1742724441641,-1794.88541936,0.00016264,2]
[356580420,1742724441664,-500.0,0.00016264,2]
[356580421,1742724441687,-582.04298453,0.00016264,2]
[356580422,1742724441717,-1212.84243483,0.00016264,2]
[356580423,1742724441742,-1794.88541936,0.00016264,2]
[356580424,1742724441765,-1794.88541936,0.00016264,2]
[356580425,1742724441788,-500.0,0.00016264,2]
[356580426,1742724441811,-1794.88541936,0.00016264,2]
[356580427,1742724441833,-500.0,0.00016264,2]
[356580428,1742724441857,-423.34165276,0.00016264,2]
[356580429,1742724442081,-1371.5437666,0.00016264,2]
[356580430,1742724442106,-1013.91031302,0.00016264,2]
[356580431,1742724547117,-433.0,0.000152,2]
[356580432,1742724547139,-7521.6820178,0.00015286,2]
[356580433,1742724547161,-500.0,0.00016262,2]
[356580434,1742724547183,-300.0,0.00016262,2]
[356580435,1742724547205,-10467.75,0.00016262,2]
[356580436,1742724547227,-193.43416882,0.00016263,2]
[356580437,1742724547250,-500.0,0.00016263,2]
[356580438,1742724547272,-411.71521979,0.00016263,2]
[356580439,1742724547295,-2406.28455114,0.00016263,2]
[356580440,1742724549125,-340.73390006,0.00016263,2]
[356580441,1742724549148,-500.0,0.00016263,2]
[356580442,1742724549174,-500.0,0.00016263,2]
[356580443,1742724549198,-500.0,0.00016263,2]
[356580444,1742724549225,-2747.0184512,0.00016263,2]
[356580445,1742724549528,-500.0,0.00016263,2]
[356580446,1742724549555,-2747.0184512,0.00016263,2]
[356580447,1742724549576,-500.0,0.00016263,2]
[356580448,1742724549597,-500.0,0.00016263,2]
[356580449,1742724549618,-2747.0184512,0.00016263,2]
[356580450,1742724549639,-500.0,0.00016263,2]
[356580451,1742724549660,-500.0,0.00016263,2]
[356580452,1742724549682,-2747.0184512,0.00016263,2]
[356580453,1742724549703,-500.0,0.00016263,2]
[356580454,1742724549724,-500.0,0.00016263,2]
[356580455,1742724549744,-500.0,0.00016263,2]
[356580456,1742724549766,-2747.0184512,0.00016263,2]
[356580457,1742724549788,-500.0,0.00016263,2]
[356580458,1742724549809,-2747.0184512,0.00016263,2]
[356580459,1742724549831,-500.0,0.00016263,2]
[356580460,1742724549852,-500.0,0.00016263,2]
[356580461,1742724549875,-2747.0184512,0.00016263,2]
[356580462,1742724549896,-500.0,0.00016263,2]
[356580463,1742724549918,-500.0,0.00016263,2]
[356580464,1742724549942,-2747.0184512,0.00016263,2]
[356580465,1742724549964,-500.0,0.00016263,2]
[356580466,1742724549987,-500.0,0.00016263,2]
[356580467,1742724550010,-2747.0184512,0.00016263,2]
[356580468,1742724550033,-268.40023351,0.00016263,2]
[356580469,1742724550056,-500.0,0.00016263,2]
[356580470,1742724550078,-2747.0184512,0.00016263,2]
[356580471,1742724550101,-500.0,0.00016263,2]
[356580472,1742724550126,-2747.0184512,0.00016263,2]
[356580473,1742724550148,-500.0,0.00016263,2]
[356580474,1742724550170,-500.0,0.00016263,2]
[356580475,1742724550193,-2747.0184512,0.00016263,2]
[356580476,1742724550214,-500.0,0.00016263,2]
[356580477,1742724550236,-2747.0184512,0.00016263,2]
[356580478,1742724550258,-2747.0184512,0.00016263,2]
[356580479,1742724550279,-500.0,0.00016263,2]
[356580480,1742724550301,-2747.0184512,0.00016263,2]
[356580481,1742724550322,-500.0,0.00016263,2]
[356580482,1742724550345,-334.99910883,0.00016263,2]
[356580483,1742724550367,-2747.0184512,0.00016263,2]
[356580484,1742724550388,-2747.0184512,0.00016263,2]
[356580485,1742724550410,-2747.0184512,0.00016263,2]
[356580486,1742724550432,-2747.0184512,0.00016263,2]
[356580487,1742724550458,-2747.0184512,0.00016263,2]
[356580488,1742724550480,-2747.0184512,0.00016263,2]
[356580489,1742724550501,-2747.0184512,0.00016263,2]
[356580490,1742724550525,-2747.0184512,0.00016263,2]
[356580491,1742724550546,-2747.0184512,0.00016263,2]
[356580492,1742724550567,-2747.0184512,0.00016263,2]
[356580493,1742724550590,-2747.0184512,0.00016263,2]
[356580494,1742724550612,-2747.0184512,0.00016263,2]
[356580495,1742724550634,-2747.0184512,0.00016263,2]
[356580496,1742724550656,-2747.0184512,0.00016263,2]
[356580497,1742724550678,-2747.0184512,0.00016263,2]
[356580498,1742724550701,-2747.0184512,0.00016263,2]
[356580499,1742724550723,-2747.0184512,0.00016263,2]
[356580500,1742724550747,-2747.0184512,0.00016263,2]
[356580501,1742724550770,-2747.0184512,0.00016263,2]
[356580502,1742724550792,-2747.0184512,0.00016263,2]
[356580503,1742724550815,-2747.0184512,0.00016263,2]
[356580504,1742724550838,-2747.0184512,0.00016263,2]
[356580505,1742724550860,-2747.0184512,0.00016263,2]
[356580506,1742724550885,-2747.0184512,0.00016263,2]
[356580507,1742724550909,-1021.6447608,0.00016263,2]
[356580508,1742724553082,-1725.3736904,0.00016263,2]
[356580509,1742724553104,-2747.0184512,0.00016263,2]
[356580510,1742724553126,-2356.1623044,0.00016263,2]
[356580511,1742724553163,-390.8561468,0.00016263,2]
[356580512,1742724553185,-2747.0184512,0.00016263,2]
[356580513,1742724553207,-2747.0184512,0.00016263,2]
[356580514,1742724553229,-2747.0184512,0.00016263,2]
[356580515,1742724553250,-2747.0184512,0.00016263,2]
[356580516,1742724553273,-2272.3005084,0.00016263,2]
[356580517,1742724558144,-474.7179428,0.00016263,2]
[356580518,1742724558166,-2747.0184512,0.00016263,2]
[356580519,1742724558187,-2747.0184512,0.00016263,2]
[356580520,1742724558211,-2747.0184512,0.00016263,2]
[356580521,1742724558232,-2747.0184512,0.00016263,2]
[356580522,1742724558253,-2747.0184512,0.00016263,2]
[356580523,1742724558275,-2747.0184512,0.00016263,2]
[356580524,1742724558296,-2747.0184512,0.00016263,2]
[356580525,1742724558317,-2747.0184512,0.00016263,2]
[356580526,1742724558340,-2747.0184512,0.00016263,2]
[356580527,1742724558361,-2747.0184512,0.00016263,2]
[356580528,1742724558383,-2747.0184512,0.00016263,2]
[356580529,1742724558404,-2747.0184512,0.00016263,2]
[356580530,1742724558425,-2747.0184512,0.00016263,2]
[356580531,1742724558449,-2747.0184512,0.00016263,2]
[356580532,1742724558471,-2747.0184512,0.00016263,2]
[356580533,1742724558492,-2747.0184512,0.00016263,2]
[356580534,1742724558514,-2747.0184512,0.00016263,2]
[356580535,1742724558537,-2747.0184512,0.00016263,2]
[356580536,1742724558558,-2747.0184512,0.00016263,2]
[356580537,1742724558579,-2747.0184512,0.00016263,2]
[356580538,1742724558601,-2747.0184512,0.00016263,2]
[356580539,1742724558623,-2747.0184512,0.00016263,2]
[356580540,1742724558646,-2747.0184512,0.00016263,2]
[356580541,1742724558669,-2747.0184512,0.00016263,2]
[356580542,1742724558692,-2609.66752863,0.00016263,2]
[356580543,1742724558714,-2609.66752863,0.00016263,2]
[356580544,1742724558737,-2609.66752863,0.00016263,2]
[356580545,1742724558759,-2609.66752863,0.00016263,2]
[356580546,1742724558783,-2609.66752863,0.00016263,2]
[356580547,1742724558806,-2609.66752863,0.00016263,2]
[356580548,1742724558827,-2609.66752863,0.00016263,2]
[356580549,1742724558849,-2609.66752863,0.00016263,2]
[356580550,1742724558871,-2609.66752863,0.00016263,2]
[356580551,1742724558892,-2609.66752863,0.00016263,2]
[356580552,1742724558914,-2609.66752863,0.00016263,2]
[356580553,1742724558935,-2609.66752863,0.00016263,2]
[356580554,1742724558960,-2609.66752863,0.00016263,2]
[356580555,1742724558984,-2609.66752863,0.00016263,2]
[356580556,1742724559009,-2609.66752863,0.00016263,2]
[356580557,1742724559033,-2609.66752863,0.00016263,2]
[356580558,1742724559056,-2609.66752863,0.00016263,2]
[356580559,1742724559079,-2609.66752863,0.00016263,2]
[356580560,1742724559100,-15502.26344012,0.00016265,2]
[356580561,1742724571195,-1553.7405653,0.00016163,2]
[356580562,1742724571218,-2784.07,0.00016262,2]
[356580563,1742724571240,-151.0,0.00016266,2]
[356580564,1742724571263,-258.599076,0.00016266,2]
[356580565,1742724571286,-556.55,0.00016266,2]
[356580566,1742724571308,-661.49,0.00016266,2]
[356580567,1742724571331,-500.0,0.00016266,2]
[356580568,1742724571352,-1012.06,0.00016266,2]
[356580569,1742724571374,-500.0,0.00016266,2]
[356580570,1742724571396,-4936.15,0.00016266,2]
[356580571,1742724571435,-5984.02,0.00016266,2]
[356580572,1742724571463,-746.26,0.00016266,2]
[356580573,1742724571488,-680.62,0.00016266,2]
[356580574,1742724571512,-1870.75,0.00016266,2]
[356580575,1742724571539,-5106.81,0.00016266,2]
[356580576,1742724571562,-1853.01,0.00016266,2]
[356580577,1742724571585,-500.0,0.00016266,2]
[356580578,1742724571608,-2114.16,0.00016266,2]
[356580579,1742724571631,-658.45,0.00016266,2]
[356580580,1742724571653,-7853.71,0.00016266,2]
[356580581,1742724571676,-500.0,0.00016266,2]
[356580582,1742724571699,-20679.18,0.00016266,2]
[356580583,1742724571724,-500.0,0.00016266,2]
[356580584,1742724571749,-500.0,0.00016266,2]
[356580585,1742724571774,-500.0,0.00016266,2]
[356580586,1742724571797,-500.0,0.00016266,2]
[356580587,1742724571820,-500.0,0.00016266,2]
[356580588,1742724571843,-500.0,0.00016266,2]
[356580589,1742724571867,-24442.8489895,0.00016268,2]
[356580590,1742724571890,-500.0,0.000163,2]
[356580591,1742724571913,-502.79090001,0.000163,2]
[356580592,1742724571935,-500.0,0.000163,2]
[356580593,1742724571957,-500.0,0.000163,2]
[356580594,1742724571979,-500.0,0.000163,2]
[356580595,1742724572002,-500.0,0.000163,2]
[356580596,1742724572024,-517.23416868,0.000163,2]
[356580597,1742724572048,-354.39088526,0.000163,2]
[356580598,1742724572071,-206.47485306,0.000163,2]
[356580599,1742724572102,-501.82075072,0.000163,2]
[356580600,1742724572127,-500.0,0.000163,2]
[356580601,1742724572151,-500.0,0.000163,2]
[356580602,1742724572176,-500.0,0.000163,2]
[356580603,1742724572199,-500.0,0.000163,2]
[356580604,1742724572221,-500.0,0.000163,2]
[356580605,1742724572244,-500.0,0.000163,2]
[356580606,1742724572267,-500.0,0.000163,2]
[356580607,1742724572292,-500.0,0.000163,2]
[356580608,1742724572316,-500.0,0.000163,2]
[356580609,1742724572338,-500.0,0.000163,2]
[356580610,1742724572361,-500.0,0.000163,2]
[356580611,1742724572384,-500.0,0.000163,2]
[356580612,1742724572407,-500.0,0.000163,2]
[356580613,1742724572430,-622.2,0.00016311,2]
[356580614,1742724572458,-645.2214,0.00016366,2]
[356580615,1742724572480,-669.0945918,0.00016421,2]
[356580616,1742724572505,-693.8510917,0.00016476,2]
[356580617,1742724572528,-719.52358209,0.00016531,2]
[356580618,1742724572553,-500.0,0.00016536,2]
[356580619,1742724572582,-10467.75,0.00016536,2]
[356580620,1742724572608,-2784.07,0.00016536,2]
[356580621,1742724572631,-556.55,0.0001654,2]
[356580622,1742724572655,-661.49,0.0001654,2]
[356580623,1742724572676,-1012.06,0.0001654,2]
[356580624,1742724572698,-500.0,0.0001654,2]
[356580625,1742724572723,-4936.15,0.0001654,2]
[356580626,1742724572747,-5984.02,0.0001654,2]
[356580627,1742724572771,-746.26,0.0001654,2]
[356580628,1742724572794,-680.62,0.0001654,2]
[356580629,1742724572819,-1870.75,0.0001654,2]
[356580630,1742724573127,-5106.81,0.0001654,2]
[356580631,1742724573149,-1853.01,0.0001654,2]
[356580632,1742724573172,-500.0,0.0001654,2]
[356580633,1742724573195,-2114.16,0.0001654,2]
[356580634,1742724573217,-658.45,0.0001654,2]
[356580635,1742724573240,-7853.71,0.0001654,2]
[356580636,1742724573263,-500.0,0.0001654,2]
[356580637,1742724573285,-20679.18,0.0001654,2]
[356580638,1742724573308,-500.0,0.0001654,2]
[356580639,1742724573330,-500.0,0.0001654,2]